lending/lending_fUSD_20251116
["ID","MTS","AMOUNT","RATE_DAILY","PERIOD"]
[394152110,1763327439710,-182.6,0.000404,30]
[394152111,1763327439719,-500.0,0.00040425,30]
[394152112,1763327439728,-500.0,0.00040457,30]
[394152113,1763327439738,-1604.0,0.00040464,2]
[394152114,1763327439747,-1190.0,0.00040464,2]
[394152115,1763327439756,-150.0,0.00040487,12]
[394152116,1763327439765,-157.26425,0.00040488,30]
[394152117,1763327439774,-500.0,0.00040529,30]
[394152118,1763327439784,-500.0,0.0004056,30]
[394152119,1763327439793,-205.59,0.0004057,14]
[394152120,1763327439802,-500.0,0.00040579,30]
[394152121,1763327439811,-550.22,0.0004058,2]
[394152122,1763327439821,-1100.32,0.0004058,2]
[394152123,1763327439830,-550.22,0.0004058,2]
[394152124,1763327439839,-550.22,0.0004058,2]
[394152125,1763327439849,-550.22,0.0004058,2]
[394152126,1763327439859,-550.22,0.0004058,2]
[394152127,1763327439868,-698.87,0.0004058,2]
[394152128,1763327439877,-550.22,0.0004058,2]
[394152129,1763327439887,-550.22,0.0004058,2]
[394152130,1763327439896,-550.22,0.0004058,2]
[394152131,1763327439905,-550.22,0.0004058,2]
[394152132,1763327439915,-550.22,0.0004058,2]
[394152133,1763327439924,-550.22,0.0004058,2]
[394152134,1763327439934,-550.22,0.0004058,2]
[394152135,1763327439943,-550.22,0.0004058,2]
[394152136,1763327439952,-500.0,0.0004062,30]
[394152137,1763327439962,-416.71,0.0004063,2]
[394152138,1763327439971,-416.71,0.0004063,2]
[394152139,1763327439981,-416.71,0.0004063,2]
[394152140,1763327439993,-416.71,0.0004063,2]
[394152142,1763327440003,-416.71,0.0004063,2]
[394152143,1763327440012,-416.71,0.0004063,2]
[394152144,1763327440023,-416.71,0.0004063,2]
[394152145,1763327440032,-416.71,0.0004063,2]
[394152146,1763327440042,-416.71,0.0004063,2]
[394152147,1763327440052,-416.71,0.0004063,2]
[394152148,1763327440062,-416.71,0.0004063,2]
[394152149,1763327440072,-416.71,0.0004063,2]
[394152150,1763327440082,-416.71,0.0004063,2]
[394152151,1763327440091,-416.71,0.0004063,2]
[394152152,1763327440100,-416.71,0.0004063,2]
[394152153,1763327440110,-416.71,0.0004063,2]
[394152154,1763327440119,-416.71,0.0004063,2]
[394152155,1763327440130,-416.71,0.0004063,2]
[394152156,1763327440138,-416.71,0.0004063,2]
[394152157,1763327440148,-833.42,0.0004063,2]
[394152158,1763327440158,-9543.45034509,0.0004064,15]
[394152161,1763327440167,-157.26425,0.00040688,30]
[394152162,1763327440176,-500.0,0.00040706,30]
[394152163,1763327440185,-500.0,0.00040721,30]
[394152164,1763327440194,-7549.0,0.00040838,5]
[394152165,1763327440203,-157.26425,0.00040888,30]
[394152166,1763327440212,-150.0,0.0004089,14]
[394152167,1763327440222,-30558.1216073,0.00040899,4]
[394152168,1763327440231,-550.22,0.00040909,2]
[394152169,1763327440241,-550.22,0.00040909,2]
[394152170,1763327440250,-550.22,0.00040909,2]
[394152171,1763327440259,-550.22,0.00040909,2]
[394152172,1763327440268,-550.22,0.00040909,2]
[394152173,1763327440277,-550.22,0.00040909,2]
[394152174,1763327440288,-550.22,0.00040909,2]
[394152175,1763327440297,-550.22,0.00040909,2]
[394152176,1763327440308,-550.22,0.00040909,2]
[394152177,1763327440317,-550.22,0.00040909,2]
[394152178,1763327440326,-550.22,0.00040909,2]
[394152179,1763327440337,-550.22,0.00040909,2]
[394152180,1763327440348,-550.22,0.00040909,2]
[394152181,1763327440358,-550.22,0.00040909,2]
[394152182,1763327440369,-550.22,0.00040909,2]
[394152183,1763327440380,-550.22,0.00040909,2]
[394152184,1763327440389,-550.22,0.00040909,2]
[394152185,1763327440399,-550.22,0.00040909,2]
[394152186,1763327440410,-550.22,0.00040909,2]
[394152187,1763327440420,-1100.38,0.00040909,2]
[394152188,1763327440429,-550.22,0.00040909,2]
[394152189,1763327440439,-826.36,0.00040909,2]
[394152190,1763327440449,-550.22,0.00040909,2]
[394152191,1763327440459,-550.22,0.00040909,2]
[394152192,1763327440468,-550.22,0.00040909,2]
[394152193,1763327440477,-1000.0,0.0004093,120]
[394152194,1763327440487,-500.0,0.00040934,30]
[394152195,1763327440497,-209.10122154,0.00040973,13]
[394152196,1763327440506,-13051.33941664,0.00040973,15]
[394152197,1763327440516,-9543.45034509,0.0004099,15]
[394152198,1763327440526,-150.0,0.00040998,5]
[394152199,1763327440535,-150.0,0.00040999,41]
[394152200,1763327440544,-1152.36375515,0.00041,30]
[394152201,1763327440553,-150.0,0.00041,60]
[394152202,1763327440562,-390.0,0.00041,90]
[394152203,1763327440572,-379.0,0.00041,30]
[394152204,1763327440580,-377.0,0.00041,120]
[394152205,1763327440590,-1006.0,0.00041,30]
[394152206,1763327440599,-13051.33941662,0.00041014,15]
[394152207,1763327440609,-30558.1216073,0.0004102,4]
[394152208,1763327440618,-500.0,0.00041029,120]
[394152209,1763327440628,-1225.69,0.00041029,2]
[394152210,1763327440638,-1000.0,0.00041029,2]
[394152211,1763327440647,-500.0,0.00041029,2]
[394152212,1763327440656,-62620.26309221,0.0004103,2]
[394152214,1763327440665,-13051.33941662,0.00041055,15]
[394152215,1763327440674,-500.0,0.00041073,5]
[394152216,1763327440684,-500.0,0.00041073,5]
[394152217,1763327440694,-557.21781607,0.00041073,5]
[394152218,1763327440703,-500.0,0.00041073,5]
[394152219,1763327440713,-172.40826591,0.00041073,5]
[394152221,1763327440722,-500.0,0.00041073,5]
[394152223,1763327440730,-500.0,0.00041073,5]
[394152224,1763327440739,-504.75986535,0.00041073,5]
[394152225,1763327440748,-500.0,0.00041073,5]
[394152226,1763327440758,-580.82575013,0.00041073,5]
[394152227,1763327440767,-500.0,0.00041073,5]
[394152228,1763327440776,-157.26425,0.00041088,30]
[394152229,1763327440785,-150.0,0.00041094,45]
[394152230,1763327440795,-13051.33941662,0.00041095,15]
[394152231,1763327440804,-500.0,0.00041096,120]
[394152232,1763327440813,-150.0,0.00041096,30]
[394152233,1763327440823,-300.0,0.00041096,30]
[394152234,1763327440832,-1200.0,0.000411,2]
[394152235,1763327440841,-650.0,0.000411,2]
[394152236,1763327440851,-153.97901916,0.00041105,15]
[394152237,1763327440860,-500.0,0.00041129,30]
[394152238,1763327440870,-153.97901915,0.00041131,15]
[394152239,1763327440879,-13051.33941662,0.00041136,15]
[394152240,1763327440888,-150.0,0.00041151,30]
[394152241,1763327440898,-300.0,0.00041151,30]
[394152242,1763327440907,-153.97901915,0.00041157,15]
[394152243,1763327440917,-150.0,0.00041168,6]
[394152244,1763327440926,-13051.33941662,0.00041177,15]
[394152245,1763327440935,-153.97901915,0.00041183,15]
[394152246,1763327440945,-150.0,0.00041193,60]
[394152247,1763327440954,-150.0,0.00041194,60]
[394152248,1763327440964,-150.0,0.00041194,60]
[394152249,1763327440973,-150.0,0.00041205,60]
[394152250,1763327440983,-248.01731073,0.00041206,30]
[394152251,1763327440996,-300.0,0.00041206,30]
[394152252,1763327441006,-153.97901915,0.00041209,15]
[394152253,1763327441015,-13051.33941662,0.00041218,15]
[394152254,1763327441025,-177.32,0.00041235,30]
[394152255,1763327441035,-153.97901915,0.00041236,15]
[394152256,1763327441045,-354.64,0.00041238,30]
[394152257,1763327441055,-177.32,0.00041238,30]
[394152258,1763327441064,-177.32,0.00041238,30]
[394152259,1763327441073,-177.32,0.00041238,30]
[394152260,1763327441083,-177.32,0.00041238,30]
[394152261,1763327441092,-177.32,0.00041238,30]
[394152262,1763327441101,-354.64,0.00041238,30]
[394152263,1763327441111,-177.32,0.00041238,30]
[394152264,1763327441120,-177.32,0.00041238,30]
[394152265,1763327441130,-177.32,0.00041238,30]
[394152266,1763327441139,-177.32,0.00041238,30]
[394152267,1763327441148,-13051.33941662,0.00041258,15]
[394152268,1763327441158,-300.0,0.0004126,30]
[394152269,1763327441167,-153.97901915,0.00041262,15]
[394152270,1763327441176,-500.0,0.00041273,10]
[394152271,1763327441186,-500.0,0.00041273,10]
[394152272,1763327441195,-153.97901915,0.00041288,15]
[394152273,1763327441205,-157.26425,0.00041288,30]
[394152274,1763327441215,-13051.33941662,0.00041299,15]
[394152275,1763327441234,-1674.4905,0.00041301,2]
[394152276,1763327441246,-1225.69,0.00041303,2]
[394152277,1763327441255,-500.0,0.00041303,2]
[394152278,1763327441265,-153.97901915,0.00041314,15]
[394152279,1763327441274,-300.0,0.00041315,30]
[394152280,1763327441284,-5000.0,0.0004132,120]
[394152281,1763327441293,-30558.1216073,0.0004133,4]
[394152282,1763327441302,-371.02254177,0.00041334,120]
[394152283,1763327441312,-371.02254175,0.00041337,120]
[394152284,1763327441322,-150.0,0.00041338,28]
[394152285,1763327441331,-782.98588844,0.00041339,3]
[394152286,1763327441340,-150.0,0.00041339,8]
[394152287,1763327441350,-150.0,0.00041339,3]
[394152288,1763327441360,-150.0,0.00041339,15]
[394152289,1763327441369,-782.9858884,0.00041339,3]
[394152290,1763327441379,-782.9858884,0.00041339,3]
[394152291,1763327441390,-782.9858884,0.0004134,3]
[394152292,1763327441400,-782.9858884,0.0004134,3]
[394152293,1763327441409,-782.9858884,0.0004134,3]
[394152294,1763327441420,-592.73989998,0.0004134,2]
[394152295,1763327441431,-782.9858884,0.0004134,3]
[394152296,1763327441441,-9543.45034509,0.0004134,15]
[394152297,1763327441451,-153.97901915,0.0004134,15]
[394152298,1763327441463,-371.02254175,0.0004134,120]
[394152299,1763327441474,-13051.33941662,0.0004134,15]
[394152300,1763327441485,-777.15773629,0.0004134,2]
[394152301,1763327441496,-749.99273756,0.0004134,2]
[394152302,1763327441507,-7427.86460146,0.0004134,2]
[394152303,1763327441518,-631.15422129,0.0004134,2]
[394152304,1763327441528,-2004.84559481,0.0004134,2]
[394152305,1763327441538,-150.0,0.00041369,14]
[394152306,1763327441547,-150.0,0.00041369,90]
[394152307,1763327441556,-500.0,0.0004137,120]
[394152308,1763327441566,-390.0,0.0004137,90]
[394152309,1763327441575,-1000.0,0.0004137,14]
[394152310,1763327441585,-419.97491658,0.0004137,30]
[394152311,1763327441594,-150.0,0.0004137,30]
[394152312,1763327441607,-150.0,0.00041372,10]
[394152313,1763327441616,-500.54702076,0.00041373,5]
[394152314,1763327441625,-150.0,0.00041382,120]
[394152315,1763327441634,-500.0,0.00041387,30]
[394152316,1763327441644,-150.0,0.00041387,13]
[394152317,1763327441653,-61116.2432145,0.000414,4]
[394152318,1763327441663,-61116.2432145,0.00041404,4]
[394152319,1763327441672,-39091.53865972,0.00041404,4]
[394152320,1763327441691,-574.73323724,0.00041404,4]
[394152321,1763327441704,-622.08775657,0.00041404,4]
[394152322,1763327441719,-600.86938075,0.00041404,4]
[394152323,1763327441730,-5142.07792383,0.00041404,4]
[394152324,1763327441746,-1893.48,0.00041404,4]
[394152325,1763327441757,-18248.52436679,0.00041404,4]
[394152326,1763327441767,-91674.3648218,0.0004141,4]
[394152327,1763327441776,-88231.0817665,0.0004141,4]
[394152328,1763327441786,-220.81623409,0.00041414,7]
[394152329,1763327441796,-30558.1216073,0.00041414,4]
[394152330,1763327441805,-22057.7704416,0.00041414,4]
[394152331,1763327441815,-91674.3648218,0.00041424,4]
[394152332,1763327441825,-110288.852208,0.00041424,4]
[394152333,1763327441834,-151.0,0.00041424,30]
[394152334,1763327441844,-156.587,0.00041424,30]
[394152335,1763327441854,-256.00109441,0.00041424,30]
[394152336,1763327441864,-200.0,0.00041424,30]
[394152337,1763327441873,-200.0,0.00041424,30]
[394152338,1763327441883,-150.0,0.00041424,30]
[394152339,1763327441893,-151.0,0.00041424,30]
[394152340,1763327441903,-151.0,0.00041424,30]
[394152341,1763327441912,-414.0,0.00041424,30]
[394152342,1763327441922,-500.0,0.00041424,30]
[394152343,1763327441932,-429.318,0.00041424,30]
[394152344,1763327441943,-500.0,0.00041424,30]
[394152345,1763327441953,-445.202766,0.00041424,30]
[394152346,1763327441963,-500.0,0.00041424,30]
[394152347,1763327441973,-461.67526834,0.00041424,30]
[394152348,1763327441983,-500.0,0.00041424,30]
[394152349,1763327441997,-478.75725327,0.00041424,30]
[394152350,1763327442006,-2000.0,0.00041424,30]
[394152351,1763327442016,-500.0,0.00041424,30]
[394152352,1763327442027,-500.0,0.00041424,30]
[394152353,1763327442037,-496.47127164,0.00041424,30]
[394152354,1763327442047,-2000.0,0.00041424,30]
[394152355,1763327442056,-500.0,0.00041424,30]
[394152356,1763327442068,-365.6520911,0.00041424,30]
[394152357,1763327442078,-500.0,0.00041424,30]
[394152358,1763327442088,-2000.0,0.00041424,30]
[394152359,1763327442097,-500.0,0.00041424,30]
[394152360,1763327442106,-250.0,0.00041424,30]
[394152361,1763327442116,-500.0,0.00041424,30]
[394152362,1763327442125,-2000.0,0.00041424,30]
[394152363,1763327442135,-500.0,0.00041424,30]
[394152364,1763327442144,-250.0,0.00041424,30]
[394152365,1763327442154,-500.0,0.00041424,30]
[394152366,1763327442164,-2000.0,0.00041424,30]
[394152367,1763327442173,-500.0,0.00041424,30]
[394152368,1763327442183,-250.0,0.00041424,30]
[394152369,1763327442192,-500.0,0.00041424,30]
[394152370,1763327442202,-2000.0,0.00041424,30]
[394152371,1763327442212,-500.0,0.00041424,30]
[394152372,1763327442220,-250.0,0.00041424,30]
[394152373,1763327442414,-500.0,0.00041424,30]
[394152374,1763327442423,-2000.0,0.00041424,30]
[394152375,1763327442432,-332.60589949,0.00041424,30]
[394152376,1763327442442,-347.64330208,0.00041424,30]
[394152377,1763327442451,-250.0,0.00041424,30]
[394152378,1763327442461,-250.0,0.00041424,30]
[394152379,1763327442470,-250.0,0.00041424,30]
[394152380,1763327442479,-250.0,0.00041424,30]
[394152381,1763327442489,-2000.0,0.00041424,30]
[394152382,1763327442498,-250.0,0.00041424,30]
[394152383,1763327442507,-500.0,0.00041424,30]
[394152384,1763327442516,-1000.0,0.00041424,30]
[394152385,1763327442526,-500.0,0.00041424,30]
[394152386,1763327442535,-300.0,0.00041424,30]
[394152387,1763327442543,-250.0,0.00041424,30]
[394152388,1763327442553,-1000.0,0.00041424,30]
[394152389,1763327442562,-250.0,0.00041424,30]
[394152390,1763327442572,-500.0,0.00041424,30]
[394152391,1763327442581,-311.10000001,0.00041424,30]
[394152392,1763327442590,-1000.0,0.00041424,30]
[394152393,1763327442599,-250.0,0.00041424,30]
[394152394,1763327442608,-500.0,0.00041424,30]
[394152395,1763327442617,-1000.0,0.00041424,30]
[394152396,1763327442626,-500.0,0.00041424,30]
[394152397,1763327442635,-250.0,0.00041424,30]
[394152398,1763327442645,-500.0,0.00041424,30]
[394152399,1763327442654,-1000.0,0.00041424,30]
[394152400,1763327442663,-250.0,0.00041424,30]
[394152401,1763327442672,-500.0,0.00041424,30]
[394152402,1763327442681,-1000.0,0.00041424,30]
[394152403,1763327442691,-250.0,0.00041424,30]
[394152404,1763327442700,-250.0,0.00041424,30]
[394152405,1763327442710,-1000.0,0.00041424,30]
[394152406,1763327442720,-250.0,0.00041424,30]
[394152407,1763327442730,-250.0,0.00041424,30]
[394152408,1763327442740,-1000.0,0.00041424,30]
[394152409,1763327442750,-250.0,0.00041424,30]
[394152410,1763327442760,-1000.0,0.00041424,30]
[394152411,1763327442770,-200.0,0.00041424,30]
[394152412,1763327442779,-250.0,0.00041424,30]
[394152413,1763327442789,-207.4,0.00041424,30]
[394152414,1763327442799,-250.0,0.00041424,30]
[394152415,1763327442808,-215.0738,0.00041424,30]
[394152416,1763327442818,-250.0,0.00041424,30]
[394152417,1763327442828,-223.0315306,0.00041424,30]
[394152418,1763327442838,-250.0,0.00041424,30]
[394152419,1763327442847,-231.28369723,0.00041424,30]
[394152420,1763327442857,-250.0,0.00041424,30]
[394152421,1763327442867,-239.84119403,0.00041424,30]
[394152422,1763327442877,-250.0,0.00041424,30]
[394152423,1763327442886,-248.71531821,0.00041424,30]
[394152424,1763327442897,-257.91778498,0.00041424,30]
[394152425,1763327442907,-267.46074303,0.00041424,30]
[394152426,1763327442917,-277.35679052,0.00041424,30]
[394152427,1763327442927,-287.61899177,0.00041424,30]
[394152428,1763327442936,-298.26089446,0.00041424,30]
[394152429,1763327442945,-309.29654756,0.00041424,30]
[394152430,1763327442955,-320.74051982,0.00041424,30]
[394152431,1763327442965,-332.60791905,0.00041424,30]
[394152432,1763327442974,-344.91441206,0.00041424,30]
[394152433,1763327442984,-357.6762453,0.00041424,30]
[394152434,1763327442999,-370.91026638,0.00041424,30]
[394152435,1763327443008,-384.63394623,0.00041424,30]
[394152437,1763327443018,-398.86540225,0.00041424,30]
[394152439,1763327443027,-209.10122154,0.00041428,13]
[394152441,1763327443038,-150.0,0.00041429,4]
[394152442,1763327443048,-183348.729644,0.0004143,4]
[394152444,1763327443057,-330866.556624,0.0004143,4]
[394152446,1763327443068,-35471.1237811,0.00041434,2]
[394152448,1763327443077,-153805.970438,0.00041434,2]
[394152450,1763327443087,-3723.3419004,0.00041434,2]
[394152453,1763327443096,-3055.2332452,0.00041434,2]
[394152455,1763327443105,-150.0,0.00041438,20]
[394152458,1763327443114,-150.0,0.00041439,2]
[394152460,1763327443123,-150.0,0.00041439,7]
[394152462,1763327443132,-150.0,0.00041439,26]
[394152464,1763327443141,-15460.46964755,0.0004144,26]
[394152466,1763327443150,-854.23,0.0004144,7]
[394152468,1763327443160,-2994850.15270513,0.0004144,2]
[394152477,1763327443507,-907.0,0.00031464,2]
[394152478,1763327443516,-907.0,0.00034464,2]
[394152479,1763327443526,-907.0,0.00037464,2]
[394152480,1763327443535,-1038.32,0.0004144,2]
[394152481,1763327443550,-462.6291651,0.0004134,8]
[394152482,1763327443559,-8841.5708349,0.0004144,2]
[394152483,1763327443571,-1101.27566415,0.0004144,2]
[394152484,1763327443582,-721.66787859,0.0004144,2]
[394152485,1763327443597,-907.0,0.00040464,2]
[394152486,1763327443607,-6693.08,0.0004144,2]
[394152487,1763327443685,-550.22,0.00040909,2]
[394152488,1763327443694,-256.68557438,0.0004131,17]
[394152489,1763327443704,-300.0,0.00041439,106]
[394152490,1763327443713,-9785.04202311,0.0004144,2]
[394152491,1763327443724,-507.08234434,0.0004144,2]
[394152492,1763327443735,-1407.78438435,0.0004144,2]
[394152493,1763327443746,-1342.85013975,0.0004144,2]
[394152494,1763327443756,-5265.3587318,0.0004144,2]
[394152495,1763327443767,-2840.16194398,0.0004144,2]
[394152496,1763327443778,-1058.32946893,0.0004144,2]
[394152497,1763327443790,-497.88378513,0.0004144,2]
[394152498,1763327443801,-451.4736,0.0004144,2]
[394152499,1763327443811,-820.02695401,0.0004144,2]
[394152500,1763327443823,-1108.88047643,0.0004144,2]
[394152509,1763327446333,-39840.31869898,0.0004144,2]
[394152510,1763327446397,-18885.76012948,0.0004144,2]
[394152511,1763327446407,-859.0,0.0004144,2]
[394152512,1763327446620,-533.76,0.0004144,2]
[394152513,1763327446675,-12932.78405527,0.0004144,2]
[394152514,1763327446788,-6857.85723763,0.0004144,2]
[394152515,1763327446800,-2983.45713584,0.0004144,2]
[394152516,1763327446811,-11101.18653526,0.0004144,2]
[394152517,1763327446822,-282572.99999999,0.0004144,2]
[394152518,1763327446833,-3583.69862338,0.0004144,2]
[394152527,1763327601060,457.32,0.00013699,2]
[394152533,1763327654623,150.0,0.00028008,120]
[394152869,1763328326031,-1201.32707385,0.00016612,2]
[394152870,1763328326053,-250.0,0.00016684,2]
[394152871,1763328326074,-190.36,0.00016712,2]
[394152872,1763328326095,-244.59913329,0.000168,2]
[394152873,1763328326118,-500.0,0.000169,2]
[394152874,1763328328350,113.71379286,0.00017,2]
[394152887,1763328503890,1500.0,0.000163,5]
[394152888,1763328505990,3100.0,0.000164,5]
[394152889,1763328508078,4700.0,0.000165,6]
[394153006,1763328631350,-2108.01942602,0.000166,6]
[394153008,1763328631361,-2171.41788,0.000166,6]
[394153009,1763328631410,-2020.56269398,0.000166,6]
[394153010,1763328631420,-300.0,0.00016699,2]
[394153011,1763328631429,-1200.0,0.00016699,2]
[394153012,1763328631437,-300.0,0.00016699,2]
[394153013,1763328631447,-300.0,0.00016699,2]
[394153014,1763328631458,-7900.0,0.000167,6]
[394153015,1763328631466,-1500.0,0.000168,6]
[394153016,1763328631475,-166.66,0.00016804,2]
[394153017,1763328631484,-625.21960734,0.00016899,2]
[394153018,1763328631493,-329.27270486,0.000169,6]
[394153019,1763328631504,-1170.72729514,0.000169,6]
[394153020,1763328631513,-500.0,0.000169,2]
[394153021,1763328631522,-172.35675476,0.000169,2]
[394153022,1763328631530,-550.0,0.00016957,2]
[394153023,1763328631539,-308.41944341,0.00016958,2]
[394153024,1763328631547,-6316.28889188,0.00016958,2]
[394153025,1763328631558,-485.0847,0.00016958,2]
[394153026,1763328631568,-650.69,0.00016958,2]
[394153027,1763328631578,-172135.49282652,0.00016958,2]
[394153028,1763328631589,-269.37861996,0.00016958,2]
[394153029,1763328631599,-5207.02539024,0.00016958,2]
[394153030,1763328631610,-4674.0,0.00016958,2]
[394153031,1763328631621,-1613.9502996,0.00016958,2]
[394153032,1763328631632,-4328.06566314,0.00016958,2]
[394153033,1763328631645,-872.66531044,0.00016958,2]
[394153034,1763328631656,-7242.10215654,0.00016958,2]
[394153035,1763328631666,-605.71259571,0.00016958,2]
[394153036,1763328631678,-3115.61143538,0.00016958,2]
[394153037,1763328631688,-1644.61896634,0.00016958,2]
[394153039,1763328631699,-780.71527075,0.00016958,2]
[394153042,1763328631709,-2582.67577394,0.00016958,2]
[394153044,1763328631719,-515.71559737,0.00016958,2]
[394153046,1763328631729,-1811.79123987,0.00016958,2]
[394153048,1763328631740,-1650.0,0.00016958,2]
[394153050,1763328631750,-323.44091325,0.00016958,2]
[394153052,1763328631761,-5653.20305128,0.00016958,2]
[394153103,1763328637362,-5121.89271283,0.00016958,2]
[394153104,1763328637375,-156.7662257,0.00016958,2]
[394153105,1763328637387,-547.02401452,0.00016958,2]
[394153106,1763328637396,-486.25183306,0.00016973,2]
[394153107,1763328637548,-13.74816694,0.00016973,2]
[394153108,1763328637558,-500.0,0.00016973,2]
[394153109,1763328637567,-432.53183306,0.00016973,2]
[394153110,1763328637577,-67.46816694,0.00016973,2]
[394153111,1763328637587,-432.55947807,0.00016973,2]
[394153112,1763328637595,-595.67,0.00016976,2]
[394153113,1763328637604,-1200.0,0.00016985,2]
[394153114,1763328637613,-29561.0,0.00016986,2]
[394153115,1763328637623,-595.67,0.00016989,2]
[394153116,1763328637632,-250.0,0.0001699,2]
[394153117,1763328637642,-194.78840876,0.0001699,2]
[394153118,1763328637650,-333.35041002,0.0001699,2]
[394153119,1763328637663,-333.35041002,0.0001699,2]
[394153120,1763328637672,-333.35041002,0.0001699,2]
[394153121,1763328637681,-595.67,0.0001699,2]
[394153122,1763328637690,-595.67,0.0001699,2]
[394153123,1763328637699,-595.67,0.0001699,2]
[394153124,1763328637707,-195.0,0.00016993,2]
[394153125,1763328637716,-300.0,0.00016999,2]
[394153127,1763328637725,-500.0,0.00016999,2]
[394153129,1763328637733,-211.35536517,0.00016999,2]
[394153131,1763328637742,-369.12067655,0.00016999,2]
[394153133,1763328637751,-500.0,0.00016999,2]
[394153135,1763328637759,-309.0021968,0.00016999,2]
[394153137,1763328637768,-500.0,0.00016999,2]
[394153138,1763328637777,-500.65233627,0.00016999,2]
[394153140,1763328637786,-500.0,0.00016999,2]
[394153142,1763328637795,-500.0,0.00016999,2]
[394153144,1763328637804,-500.0,0.00016999,2]
[394153147,1763328637812,-500.0,0.00016999,2]
[394153151,1763328637821,-500.0,0.00016999,2]
[394153154,1763328637830,-500.0,0.00016999,2]
[394153157,1763328637839,-500.0,0.00016999,2]
[394153159,1763328637848,-500.0,0.00016999,2]
[394153162,1763328637858,-500.0,0.00016999,2]
[394153164,1763328637867,-500.0,0.00016999,2]
[394153167,1763328637876,-500.0,0.00016999,2]
[394153170,1763328637885,-500.0,0.00016999,2]
[394153173,1763328637895,-196.94135343,0.00016999,2]
[394153175,1763328637903,-500.0,0.00016999,2]
[394153177,1763328637912,-500.0,0.00016999,2]
[394153179,1763328637921,-500.0,0.00016999,2]
[394153181,1763328637930,-500.0,0.00016999,2]
[394153183,1763328637939,-167.73163948,0.00016999,2]
[394153185,1763328637947,-425.10104693,0.00016999,2]
[394153187,1763328637956,-500.0,0.00016999,2]
[394153189,1763328637966,-500.0,0.00016999,2]
[394153191,1763328637974,-500.0,0.00016999,2]
[394153193,1763328637983,-500.0,0.00016999,2]
[394153195,1763328637991,-560.56822135,0.00016999,2]
[394153197,1763328638000,-500.0,0.00016999,2]
[394153198,1763328638009,-491.18017337,0.00016999,2]
[394153200,1763328638018,-500.0,0.00016999,2]
[394153202,1763328638027,-500.0,0.00016999,2]
[394153205,1763328638036,-406.79328491,0.00016999,2]
[394153207,1763328638047,-500.0,0.00016999,2]
[394153209,1763328638055,-500.0,0.00016999,2]
[394153211,1763328638064,-500.0,0.00016999,2]
[394153213,1763328638073,-500.0,0.00016999,2]
[394153215,1763328638082,-500.0,0.00016999,2]
[394153216,1763328638091,-500.0,0.00016999,2]
[394153218,1763328638100,-500.0,0.00016999,2]
[394153220,1763328638109,-349.21867636,0.00016999,2]
[394153222,1763328638118,-500.0,0.00016999,2]
[394153224,1763328638128,-500.0,0.00016999,2]
[394153226,1763328638137,-500.0,0.00016999,2]
[394153228,1763328638146,-500.0,0.00016999,2]
[394153230,1763328638155,-500.0,0.00016999,2]
[394153232,1763328638164,-500.0,0.00016999,2]
[394153234,1763328638173,-500.0,0.00016999,2]
[394153236,1763328638182,-500.0,0.00016999,2]
[394153238,1763328638191,-500.0,0.00016999,2]
[394153240,1763328638201,-500.0,0.00016999,2]
[394153242,1763328638211,-500.0,0.00016999,2]
[394153244,1763328638220,-500.0,0.00016999,2]
[394153246,1763328638229,-500.0,0.00016999,2]
[394153248,1763328638239,-500.0,0.00016999,2]